bitfinex/quotes_BTCUSD_20240815
["timestamp","ask_amount","ask_price","bid_price","bid_amount"]
[1723704190101,0.0002,58199.0,58198.0,1.94992354]
[1723704190241,0.0002,58199.0,58198.0,1.70936554]
[1723704190440,1e-06,58199.0,58198.0,2.44936554]
[1723704190732,1e-06,58199.0,58198.0,2.68792354]
[1723704190919,1e-06,58199.0,58198.0,2.44936554]
[1723704191340,1e-06,58199.0,58198.0,1.94792354]
[1723704191541,1e-06,58199.0,58198.0,2.90064678]
[1723704192153,1e-06,58199.0,58198.0,2.72235354]
[1723704192357,1e-06,58199.0,58198.0,2.87262225]
[1723704192558,1e-06,58199.0,58198.0,2.88862225]
[1723704192799,1e-06,58199.0,58198.0,2.90262225]
[1723704193021,1e-06,58199.0,58198.0,2.88862225]
[1723704193254,1e-06,58199.0,58198.0,2.90262225]
[1723704193459,1e-06,58199.0,58198.0,3.60262225]
[1723704193773,0.0031794,58204.0,58203.0,1.180209]
[1723704194031,0.0009053,58208.0,58207.0,0.64852]
[1723704194032,9e-07,58208.0,58207.0,0.64852]
[1723704194231,0.1676,58226.0,58211.0,0.77156]
[1723704194452,0.00020567,58213.0,58212.0,0.36275]
[1723704194627,6.7e-07,58213.0,58212.0,2.79328052]
[1723704194987,6.7e-07,58213.0,58212.0,3.03378052]
[1723704195469,0.1676,58230.0,58216.0,1.495856]
[1723704195674,0.1676,58230.0,58216.0,1.79041054]
[1723704195904,0.312322,58234.0,58233.0,0.120206]
[1723704196104,0.312322,58234.0,58233.0,0.87258654]
[1723704196316,0.312322,58234.0,58233.0,1.11299954]
[1723704196317,0.174322,58234.0,58233.0,1.11299954]
[1723704196507,0.174322,58234.0,58233.0,1.13599954]
[1723704197991,0.000822,58234.0,58233.0,1.13599954]
[1723704198194,0.000822,58234.0,58233.0,1.14399954]
[1723704198502,0.000822,58234.0,58233.0,1.13599954]
[1723704198716,0.000822,58234.0,58233.0,1.14499954]
[1723704199046,0.000822,58234.0,58233.0,1.13599954]
[1723704199243,0.000822,58234.0,58233.0,1.15299954]
[1723704199691,0.000822,58234.0,58233.0,1.16348856]
[1723704200825,0.000822,58234.0,58233.0,1.14648856]
[1723704201153,0.000822,58234.0,58233.0,1.16748856]
[1723704201360,0.000822,58234.0,58233.0,1.40790156]
[1723704201676,0.000822,58234.0,58233.0,1.39990156]
[1723704201811,0.000822,58234.0,58233.0,1.15948856]
[1723704202008,0.000822,58234.0,58233.0,1.15648856]
[1723704202217,0.000822,58234.0,58233.0,1.80010156]
[1723704202417,0.000822,58234.0,58233.0,1.81110156]
[1723704202612,0.000822,58234.0,58233.0,1.80110156]
[1723704203084,0.000822,58234.0,58233.0,1.81110156]
[1723704204028,0.000822,58234.0,58233.0,1.79810156]
[1723704204459,0.000822,58234.0,58233.0,1.80210156]
[1723704204658,0.000822,58234.0,58233.0,1.78810156]
[1723704204834,0.000822,58234.0,58233.0,1.79810156]
[1723704205136,0.000822,58234.0,58233.0,1.81210156]
[1723704205339,0.000822,58234.0,58233.0,1.79810156]
[1723704205542,0.000822,58234.0,58233.0,1.78810156]
[1723704205741,0.000822,58234.0,58233.0,1.80210156]
[1723704205945,0.000822,58234.0,58233.0,2.04251456]
[1723704206146,0.000821,58237.0,58236.0,1.081804]
[1723704206354,0.000821,58237.0,58236.0,1.35335854]
[1723704206565,0.000821,58237.0,58236.0,1.37635854]
[1723704206972,0.000821,58237.0,58236.0,1.75155954]
[1723704207174,0.00906401,58246.0,58245.0,0.120181]
[1723704207381,0.00906401,58246.0,58245.0,0.41473554]
[1723704207600,0.00906401,58246.0,58245.0,1.13582454]
[1723704207998,0.00906401,58246.0,58245.0,1.37618754]
[1723704208225,0.00906401,58246.0,58245.0,1.54298754]
[1723704208862,0.00906401,58246.0,58245.0,1.55698754]
[1723704209278,0.00906401,58246.0,58245.0,1.56798754]
[1723704209488,0.00906401,58246.0,58245.0,1.58198754]
[1723704209711,0.00906401,58246.0,58245.0,1.57098754]
[1723704209910,0.00906401,58246.0,58245.0,1.40418754]
[1723704210936,0.00906401,58246.0,58245.0,1.37618754]
[1723704211138,0.00906401,58246.0,58245.0,1.39018754]
[1723704211357,0.00906401,58246.0,58245.0,1.40418754]
[1723704212158,0.30846401,58246.0,58245.0,0.91054836]
[1723704213265,0.30846401,58246.0,58245.0,0.67018536]
[1723704213592,0.30846401,58246.0,58245.0,0.91054836]
[1723704214010,0.30846401,58246.0,58245.0,0.89654836]
[1723704214207,0.30846401,58246.0,58245.0,0.88254836]
[1723704214462,0.00906401,58246.0,58245.0,1.13691136]
[1723704214617,0.00906401,58246.0,58245.0,1.15991136]
[1723704215052,0.00906401,58246.0,58245.0,1.17391136]
[1723704215219,0.00906401,58246.0,58245.0,1.15991136]
[1723704215426,0.00906401,58246.0,58245.0,1.17391136]
[1723704215610,0.00906401,58246.0,58245.0,1.33561136]
[1723704216954,0.00906401,58246.0,58245.0,1.57597436]
[1723704217360,0.30576401,58246.0,58245.0,0.13808682]
[1723704217567,0.30576401,58246.0,58245.0,0.15826782]
[1723704217742,0.30576401,58246.0,58245.0,0.128]
[1723704217925,0.42594301,58246.0,58245.0,0.028]
[1723704218492,0.42594301,58246.0,58245.0,0.014]
[1723704218793,0.42594301,58246.0,58226.0,0.03443]
[1723704218794,0.1309,58239.0,58226.0,0.03443]
[1723704218996,0.1309,58233.0,58219.0,0.0009042]
[1723704219304,0.00906401,58246.0,58228.0,0.120217]
[1723704219305,0.1658,58229.0,58228.0,0.120217]
[1723704219730,0.1658,58229.0,58228.0,0.53220554]
[1723704219927,0.1658,58229.0,58228.0,0.77263954]
[1723704220282,0.1658,58229.0,58228.0,0.17155454]
[1723704220692,0.1658,58229.0,58228.0,0.29177154]
[1723704220906,0.1309,58230.0,58228.0,0.29177154]
[1723704220907,0.2967,58230.0,58229.0,0.601075]
[1723704221184,0.2967,58230.0,58229.0,1.03605954]
[1723704221713,0.2967,58230.0,58229.0,1.13605954]
[1723704221917,0.2967,58230.0,58229.0,1.13905954]
[1723704222348,0.2967,58230.0,58229.0,1.13605954]
[1723704222517,0.2967,58230.0,58229.0,1.14305954]
[1723704223492,0.12924501,58246.0,58241.0,0.120188]
[1723704223693,0.1691,58244.0,58241.0,0.120189]
[1723704223944,0.120189,58242.0,58237.0,0.120197]
[1723704224184,0.3063,58241.0,58237.0,0.120197]
[1723704224423,0.42559,58241.0,58235.0,0.120202]
[1723704224659,0.1404,58239.0,58236.0,0.17155454]
[1723704224895,0.165,58238.0,58236.0,0.17155454]
[1723704225144,0.165,58234.0,58229.0,0.1]
[1723704225408,0.01106401,58246.0,58225.0,0.120222]
[1723704225409,0.120213,58230.0,58225.0,0.120222]
[1723704225638,0.08577727,58241.0,58219.0,0.0009042]
[1723704225639,1.133205,58229.0,58219.0,0.0009042]
[1723704225856,0.892775,58229.0,58219.0,0.0009042]
[1723704226092,0.892775,58229.0,58219.0,0.1211392]
[1723704226333,0.892775,58229.0,58219.0,0.0009042]
[1723704227335,0.2917,58229.0,58219.0,0.0009042]
[1723704227577,0.2917,58229.0,58228.0,0.1211201]
[1723704227807,0.2917,58229.0,58228.0,0.0009031]
[1723704228034,0.2917,58229.0,58228.0,0.1211201]
[1723704228271,0.2917,58229.0,58228.0,0.0009031]
[1723704228524,0.2987,58229.0,58228.0,0.0019031]
[1723704228767,0.2987,58229.0,58228.0,0.1221201]
[1723704229007,0.2917,58229.0,58228.0,0.68776537]
[1723704229236,0.2967,58229.0,58228.0,0.68776537]
[1723704229477,0.2967,58229.0,58228.0,0.85931991]
[1723704229774,0.005,58229.0,58228.0,1.36318791]
[1723704230006,0.005,58229.0,58228.0,1.23277484]
[1723704230942,0.002,58229.0,58228.0,1.23277484]
[1723704231140,0.1657,58239.0,58238.0,0.360588]
[1723704231342,0.1657,58239.0,58238.0,0.60098]
[1723704232445,0.1657,58239.0,58238.0,0.60298]
[1723704233053,0.1657,58239.0,58238.0,0.362588]
[1723704233369,0.1657,58239.0,58238.0,0.002]
[1723704234386,0.1667,58239.0,58238.0,0.002]
[1723704234832,0.1667,58239.0,58238.0,0.122196]
[1723704235067,0.1657,58239.0,58238.0,0.122196]
[1723704235290,0.1657,58239.0,58238.0,0.120196]
[1723704235504,0.1667,58239.0,58238.0,0.002]
[1723704236113,0.1667,58239.0,58238.0,0.122196]
[1723704238643,0.1667,58239.0,58238.0,0.362588]
[1723704238847,0.1667,58239.0,58238.0,0.002]
[1723704239048,0.1667,58239.0,58238.0,0.122196]
[1723704239462,0.90797,58239.0,58238.0,0.002]
[1723704239662,0.90797,58239.0,58228.0,0.01092403]
[1723704239663,0.90797,58239.0,58228.0,0.0009031]
[1723704239880,0.667645,58229.0,58228.0,0.0009031]
[1723704240099,0.908075,58229.0,58228.0,0.0009031]
[1723704240302,1.148505,58229.0,58228.0,0.0009031]
[1723704240709,1.61151191,58229.0,58228.0,0.0009031]
[1723704240894,1.6370231,58229.0,58228.0,0.0019031]
[1723704241228,1.87183626,58229.0,58228.0,0.0019031]
[1723704241429,1.97388101,58229.0,58228.0,0.0009031]
[1723704241630,1.97388101,58229.0,58228.0,0.0019031]
[1723704241631,1.63896731,58229.0,58228.0,0.0019031]
[1723704241897,1.64596731,58229.0,58228.0,0.0029031]
[1723704242098,1.63896731,58229.0,58228.0,0.0019031]
[1723704242301,1.63696731,58229.0,58228.0,0.0009031]
[1723704242534,1.63696731,58229.0,58228.0,0.0019031]
[1723704242535,1.6184511,58229.0,58228.0,0.0019031]
[1723704242737,1.6204511,58229.0,58228.0,0.0029031]
[1723704243310,1.62044713,58229.0,58228.0,0.0029031]
[1723704243922,1.56948954,58229.0,58228.0,0.0029031]
[1723704244670,1.74104408,58229.0,58228.0,0.0029031]
[1723704244882,1.56948954,58229.0,58228.0,0.0029031]
[1723704245089,1.157505,58229.0,58228.0,0.0029031]
[1723704246083,0.917075,58229.0,58228.0,0.0029031]
[1723704246666,0.316,58229.0,58228.0,0.0029031]
[1723704246847,0.436215,58229.0,58228.0,0.0029031]
[1723704247056,0.676645,58229.0,58228.0,0.0029031]
[1723704247224,1.157505,58229.0,58228.0,0.0029031]
[1723704247431,1.155505,58229.0,58228.0,0.0019031]
[1723704247789,0.911075,58229.0,58228.0,0.0019031]
[1723704247987,0.918075,58229.0,58228.0,0.0029031]
[1723704248505,0.434215,58229.0,58228.0,0.0019031]
[1723704248940,0.31,58229.0,58228.0,0.1221201]
[1723704249142,0.31,58229.0,58228.0,0.0019031]
[1723704249342,0.319,58229.0,58228.0,0.0029031]
[1723704249543,0.316,58229.0,58228.0,0.0019031]
[1723704250088,0.316,58229.0,58228.0,0.1221201]
[1723704250501,0.316,58229.0,58228.0,0.3625541]
[1723704250708,0.1713,58229.0,58228.0,0.3615541]
[1723704250914,0.1783,58229.0,58228.0,0.1221201]
[1723704251120,0.1813,58229.0,58228.0,0.1231201]
[1723704251535,0.1813,58229.0,58228.0,0.6039881]
[1723704251536,0.01,58229.0,58228.0,0.6039881]
[1723704256649,0.01,58229.0,58228.0,1.01597664]
[1723704257254,0.01,58229.0,58228.0,0.77554264]
[1723704258433,0.01,58229.0,58228.0,1.01597664]
[1723704259074,0.01,58229.0,58228.0,1.17657664]
[1723704259278,0.3174,58229.0,58228.0,0.0029031]
[1723704259526,0.3144,58229.0,58228.0,0.0019031]
[1723704259941,0.3144,58229.0,58228.0,0.0059031]
[1723704260349,0.3144,58229.0,58228.0,0.0049031]
[1723704260350,0.54783,58229.0,58228.0,0.0049031]
[1723704260758,0.909475,58229.0,58228.0,0.0119031]
[1723704260972,0.669045,58229.0,58228.0,0.0049031]
[1723704261184,0.669045,58229.0,58228.0,0.53310864]
[1723704261185,0.001,58229.0,58228.0,0.53310864]
[1723704261405,0.007,58229.0,58228.0,0.3615541]
[1723704261626,0.007,58229.0,58228.0,0.0009031]
[1723704261863,0.01,58229.0,58228.0,0.0019031]
[1723704262106,0.003,58229.0,58228.0,0.0019031]
[1723704262307,0.120214,58230.0,58228.0,0.0009031]
[1723704262457,0.120215,58229.0,58228.0,0.0009031]
[1723704262672,0.003,58229.0,58228.0,0.0009031]
[1723704263102,0.120213,58230.0,58228.0,0.0009031]
[1723704263454,0.006,58229.0,58228.0,0.0009031]
[1723704263945,0.421015,58229.0,58228.0,0.0009031]
[1723704264147,0.3008,58229.0,58228.0,0.0009031]
[1723704264450,0.3068,58229.0,58228.0,0.0009031]
[1723704264562,0.3098,58229.0,58228.0,0.0019031]
[1723704265099,0.3098,58229.0,58228.0,0.0009031]
[1723704265100,0.3068,58229.0,58228.0,0.0009031]
[1723704265516,0.3098,58229.0,58228.0,0.0019031]
[1723704265888,0.3098,58229.0,58228.0,0.1211201]
[1723704266088,0.3068,58229.0,58228.0,0.0009031]
[1723704266447,0.3098,58229.0,58228.0,0.0009031]
[1723704266661,0.3038,58229.0,58228.0,0.1211201]
[1723704267072,0.1764,58229.0,58228.0,0.1211201]
[1723704267272,0.008,58229.0,58228.0,0.3615541]
[1723704268039,0.008,58229.0,58228.0,0.1211201]
[1723704268301,0.3036,58233.0,58229.0,0.120214]
[1723704268481,0.3036,58233.0,58228.0,0.0009031]
[1723704268482,0.290015,58229.0,58228.0,0.0009031]
[1723704268783,0.293015,58229.0,58228.0,0.0009031]
[1723704268915,0.296015,58229.0,58228.0,0.0019031]
[1723704269327,0.293015,58229.0,58228.0,0.0009031]
[1723704269728,0.296015,58229.0,58228.0,0.0009031]
[1723704269972,0.293015,58229.0,58228.0,0.0009031]
[1723704270393,0.295015,58229.0,58228.0,0.0009031]
[1723704270737,0.293015,58229.0,58228.0,0.0009031]
[1723704271252,0.290015,58229.0,58228.0,0.0009031]
[1723704271463,0.293015,58229.0,58228.0,0.0009031]
[1723704271655,0.295015,58229.0,58228.0,0.0009031]
[1723704272058,0.293015,58229.0,58228.0,0.0009031]
[1723704272303,0.533445,58229.0,58228.0,0.0009031]
[1723704272481,0.290015,58229.0,58228.0,0.0009031]
[1723704272883,0.293015,58229.0,58228.0,0.0009031]
[1723704273233,0.533445,58229.0,58228.0,0.0009031]
[1723704273439,0.536445,58229.0,58228.0,0.0009031]
[1723704273569,0.773875,58229.0,58228.0,0.0009031]
[1723704273965,0.775875,58229.0,58228.0,0.0009031]
[1723704274364,0.910875,58229.0,58228.0,0.0009031]
[1723704276551,0.670445,58229.0,58228.0,0.0009031]
[1723704277199,0.430015,58229.0,58228.0,0.0009031]
[1723704277330,0.3098,58229.0,58228.0,0.0009031]
[1723704277741,0.670445,58229.0,58228.0,0.0009031]
[1723704278137,1.13418222,58229.0,58228.0,0.0009031]
[1723704278346,2.9085513,58229.0,58228.0,0.0009031]
[1723704278704,1.149734,58220.0,58204.0,0.068782]
[1723704278906,1.149734,58220.0,58207.0,0.120259]
[1723704278907,0.1693,58211.0,58207.0,0.120259]
[1723704279107,0.289552,58211.0,58207.0,0.120259]
[1723704279316,0.1693,58211.0,58208.0,0.120258]
[1723704279521,0.1693,58211.0,58209.0,0.120255]
[1723704280374,0.1693,58211.0,58209.0,0.150255]
[1723704281262,0.1753,58211.0,58209.0,0.150255]
[1723704281959,0.1713,58211.0,58209.0,0.150255]
[1723704282164,0.1743,58211.0,58209.0,0.150255]
[1723704286167,0.1743,58211.0,58210.0,0.120254]
[1723704286367,0.1743,58211.0,58209.0,0.150254]
[1723704287133,0.1743,58211.0,58210.0,0.120254]
[1723704287585,0.1743,58211.0,58209.0,0.03]
[1723704287790,0.1713,58211.0,58209.0,0.150256]
[1723704287990,0.1693,58211.0,58209.0,0.150256]
[1723704288387,0.1713,58211.0,58209.0,0.150256]
[1723704288563,0.1693,58211.0,58209.0,0.03]
[1723704288778,0.1733,58211.0,58209.0,0.150255]
[1723704289190,0.1693,58211.0,58209.0,0.150255]
[1723704289599,0.1733,58211.0,58209.0,0.150255]
[1723704290207,0.1753,58211.0,58209.0,0.150255]
[1723704291618,0.1753,58211.0,58210.0,0.120254]
[1723704291845,0.1753,58211.0,58209.0,0.03]
[1723704292410,0.1753,58211.0,58209.0,0.150256]
[1723704292611,0.1713,58211.0,58209.0,0.150256]
[1723704293022,0.1753,58211.0,58209.0,0.150256]
[1723704293334,0.1733,58211.0,58209.0,0.150256]
[1723704293534,0.1753,58211.0,58209.0,0.150256]
[1723704294180,0.415804,58211.0,58210.0,0.0009031]
[1723704294355,0.665056,58211.0,58210.0,0.0009031]
[1723704294820,0.671056,58211.0,58210.0,0.0009031]
[1723704294946,0.669056,58211.0,58210.0,0.0009031]
[1723704295359,0.3043,58211.0,58210.0,0.0009031]
[1723704295574,0.3043,58211.0,58210.0,0.1211571]
[1723704295575,0.004,58211.0,58210.0,0.1211571]
[1723704296319,0.120247,58214.0,58210.0,0.1211571]
[1723704296618,0.002,58211.0,58210.0,0.1211571]
[1723704296817,0.120247,58214.0,58210.0,0.1211571]
[1723704297020,0.001,58211.0,58210.0,0.1211571]
[1723704297361,0.120248,58213.0,58210.0,0.0009031]
[1723704298383,0.004,58211.0,58210.0,0.0009031]
[1723704298585,0.004,58211.0,58210.0,0.1211571]
[1723704298784,0.005,58211.0,58210.0,0.6021731]
[1723704299011,0.001,58211.0,58210.0,1.18243564]
[1723704300289,0.4764,58223.0,58220.0,0.120231]
[1723704300523,0.2906,58224.0,58221.0,0.12023]
[1723704302075,0.2996,58224.0,58221.0,0.001]
[1723704302379,0.601145,58222.0,58221.0,0.001]
[1723704302597,0.360756,58211.0,58210.0,0.0009031]
[1723704302849,0.655556,58211.0,58210.0,0.0009031]
[1723704303442,0.2948,58211.0,58210.0,0.0009031]
[1723704303713,0.1675,58211.0,58210.0,0.0009031]
[1723704303923,0.002,58211.0,58210.0,0.1211571]
[1723704304109,0.120245,58215.0,58211.0,0.120252]
[1723704304918,0.1335,58216.0,58214.0,0.120245]
[1723704305143,0.29852019,58222.0,58210.0,0.0009031]
[1723704305338,0.240466,58221.0,58211.0,0.17155454]
[1723704305685,0.120236,58219.0,58214.0,0.120245]
[1723704305913,0.05106119,58220.0,58213.0,0.240492]
[1723704306144,0.6462,58223.0,58213.0,0.17155454]
[1723704306368,0.253925,58224.0,58220.0,0.120233]
[1723704306564,0.000822,58219.0,58213.0,0.120246]
[1723704306673,0.000822,58219.0,58209.0,0.1713042]
[1723704306674,0.240488,58215.0,58210.0,0.0009031]
[1723704306903,0.521556,58211.0,58210.0,0.0009031]
[1723704307106,0.12025,58212.0,58210.0,0.0009031]
[1723704307311,0.120252,58211.0,58210.0,0.0009031]
[1723704307723,0.60126,58211.0,58210.0,0.0009031]
[1723704307930,0.89586,58211.0,58210.0,0.0009031]
[1723704308134,0.77373153,58211.0,58210.0,0.0009031]
[1723704308336,1.25025521,58211.0,58210.0,0.0009031]
[1723704308582,1.62907252,58211.0,58210.0,0.0009031]
[1723704308958,1.10421164,58211.0,58210.0,0.0009031]
[1723704309167,0.655356,58211.0,58210.0,0.0009031]
[1723704309335,0.70643748,58211.0,58210.0,0.0009031]
[1723704309542,0.655356,58211.0,58210.0,0.0009031]
[1723704309959,0.89586,58211.0,58210.0,0.0009031]
[1723704310360,0.662356,58211.0,58210.0,0.0019031]
[1723704310807,0.674356,58211.0,58210.0,0.0029031]
[1723704311014,0.662356,58211.0,58210.0,0.0019031]
[1723704311215,0.71343748,58211.0,58210.0,0.0019031]
[1723704311435,0.71343748,58211.0,58210.0,0.0029031]
[1723704311436,0.672356,58211.0,58210.0,0.0029031]
[1723704311670,0.95694148,58211.0,58210.0,0.0019031]
[1723704311876,0.90586,58211.0,58210.0,0.0019031]
[1723704312125,1.39455179,58211.0,58210.0,0.0019031]
[1723704312516,1.31791854,58211.0,58210.0,0.0019031]
[1723704313125,1.32491854,58211.0,58210.0,0.0029031]
[1723704313548,1.64558796,58211.0,58210.0,0.0029031]
[1723704313971,1.32491854,58211.0,58210.0,0.0029031]
[1723704314602,1.74783201,58211.0,58210.0,0.0029031]
[1723704315313,0.91286,58211.0,58210.0,0.0029031]
[1723704315517,0.98950626,58211.0,58210.0,0.0029031]
[1723704316141,1.08441454,58211.0,58210.0,0.0029031]
[1723704316353,1.74803126,58211.0,58210.0,0.0029031]
[1723704316561,2.84769188,58211.0,58210.0,0.0029031]
[1723704316993,1.71296611,58211.0,58210.0,0.0029031]
[1723704317172,1.64563334,58211.0,58210.0,0.0029031]
[1723704317605,0.120275,58200.0,58197.0,0.0009042]
[1723704317806,0.120272,58202.0,58197.0,0.0009042]
[1723704318023,0.120272,58201.0,58197.0,0.0009042]
[1723704318235,0.05111186,58204.0,58200.0,0.120274]
[1723704318459,0.0766678,58206.0,58203.0,0.1623]
[1723704318460,0.05111186,58205.0,58203.0,0.1623]
[1723704318666,0.05111186,58208.0,58204.0,0.240533]
[1723704318915,0.52751186,58210.0,58207.0,0.12026]
[1723704319136,0.0836678,58211.0,58210.0,0.6553662]
[1723704319137,0.007,58211.0,58210.0,0.6553662]
[1723704319371,0.12777967,58218.0,58211.0,0.120251]
[1723704319372,0.120242,58216.0,58211.0,0.120251]
[1723704319629,0.120241,58217.0,58211.0,0.240502]
[1723704320333,0.05193386,58219.0,58210.0,0.5351122]
[1723704320334,0.240477,58218.0,58210.0,0.5351122]
[1723704320535,0.60126,58211.0,58210.0,0.0009042]
[1723704320713,0.6124238,58211.0,58210.0,0.0009042]
[1723704320913,0.77626,58211.0,58210.0,0.0009042]
[1723704321367,0.82739368,58211.0,58210.0,0.0009042]
[1723704321478,0.8529492,58211.0,58210.0,0.0009042]
[1723704321684,1.20039817,58211.0,58210.0,0.0009042]
[1723704321881,1.0991459,58211.0,58210.0,0.0009042]
[1723704322488,1.22696124,58211.0,58210.0,0.0009042]
[1723704323410,1.23096124,58211.0,58210.0,0.0009042]
[1723704324603,0.45470124,58211.0,58210.0,0.7346742]
[1723704324810,0.45470124,58211.0,58210.0,0.2536582]
[1723704324811,0.005,58211.0,58210.0,0.2536582]
[1723704325013,0.005,58211.0,58210.0,0.4941662]
[1723704325215,0.005,58211.0,58210.0,0.82045147]
[1723704325620,0.005,58211.0,58210.0,0.7346742]
[1723704326203,0.001,58211.0,58210.0,0.7346742]
[1723704326561,0.004,58211.0,58210.0,0.7346742]
[1723704326757,0.004,58211.0,58210.0,1.14673674]
[1723704326970,0.0512027,58217.0,58216.0,0.120241]
[1723704327234,0.07762606,58219.0,58210.0,0.71046674]
[1723704327235,0.0512027,58218.0,58217.0,0.360718]
[1723704327437,0.0520247,58219.0,58218.0,0.120237]
[1723704327652,0.000822,58219.0,58218.0,0.601187]
[1723704328063,0.000822,58219.0,58218.0,0.120237]
[1723704328490,0.000822,58219.0,58218.0,0.360712]
[1723704328692,0.000822,58219.0,58218.0,0.120237]
[1723704328896,0.000822,58219.0,58216.0,0.240482]
[1723704329094,0.000822,58219.0,58214.0,0.400891]
[1723704329294,0.000822,58219.0,58217.0,0.120238]
[1723704329933,0.000822,58219.0,58218.0,0.120237]
[1723704330132,0.005822,58219.0,58218.0,0.001]
[1723704330354,0.302222,58219.0,58210.0,0.0009042]
[1723704330561,0.05119602,58217.0,58210.0,0.0009042]
[1723704330767,1.06416002,58211.0,58210.0,0.0009042]
[1723704330991,1.08975803,58211.0,58210.0,0.0009042]
[1723704331174,1.012964,58211.0,58210.0,0.0009042]
[1723704331638,0.77246,58211.0,58210.0,0.0009042]
[1723704332053,0.77246,58211.0,58210.0,0.0059042]
[1723704332878,0.84925691,58211.0,58210.0,0.0059042]
[1723704333100,0.77246,58211.0,58210.0,0.0079042]
[1723704333318,1.57884791,58211.0,58210.0,0.0079042]
[1723704333540,0.60127,58210.0,58209.0,0.0009042]
[1723704333744,1.73292441,58210.0,58209.0,0.0009042]
[1723704333950,0.661737,58198.0,58197.0,0.0009042]
[1723704334155,0.97910725,58198.0,58197.0,0.0009042]
[1723704334353,0.902295,58198.0,58197.0,0.0009042]
[1723704334635,0.97911508,58198.0,58197.0,0.0009042]
[1723704335649,0.902295,58198.0,58197.0,0.0009042]
[1723704336092,0.912295,58198.0,58197.0,0.0019042]
[1723704336500,0.96351068,58198.0,58197.0,0.0019042]
[1723704336707,1.35420023,58198.0,58197.0,0.0009042]
[1723704336913,1.35420023,58198.0,58197.0,0.0019042]
[1723704336914,1.81360466,58198.0,58197.0,0.0019042]
[1723704337131,2.2257172,58198.0,58197.0,0.0019042]
[1723704337344,2.12330086,58198.0,58197.0,0.0019042]
[1723704338068,1.88274286,58198.0,58197.0,0.0019042]
[1723704338269,2.01074149,58198.0,58197.0,0.0019042]
[1723704338469,1.88274286,58198.0,58197.0,0.0019042]
[1723704338983,2.01074149,58198.0,58197.0,0.0019042]
[1723704339170,1.88274286,58198.0,58197.0,0.0019042]
[1723704339491,2.91330086,58198.0,58197.0,0.0019042]
[1723704339692,3.49420504,58198.0,58197.0,0.0019042]
[1723704339911,1.137896,58188.0,58187.0,0.000822]
[1723704340132,1.62198586,58188.0,58187.0,0.000822]
[1723704340532,1.74981159,58188.0,58187.0,0.000822]
[1723704341180,1.87658486,58188.0,58187.0,0.000822]
[1723704341347,2.45404954,58188.0,58187.0,0.000822]
[1723704341547,2.7466117,58188.0,58187.0,0.000822]
[1723704341912,4.19792509,58188.0,58187.0,0.000822]
[1723704342076,4.67220988,58188.0,58187.0,0.000822]
[1723704342500,4.83972021,58188.0,58187.0,0.000822]
[1723704342883,4.80022246,58188.0,58187.0,0.001822]
[1723704343092,1.398226,58181.0,58180.0,0.009031]
[1723704343291,3.44490614,58181.0,58180.0,0.009031]
[1723704343894,0.240648,58177.0,58172.0,0.08577727]
[1723704344317,1.21071439,58181.0,58172.0,0.08577727]
[1723704344667,0.120329,58174.0,58172.0,0.08577727]
[1723704345426,0.12033,58173.0,58172.0,0.08577727]
[1723704345858,0.240646,58177.0,58172.0,0.08577727]
[1723704346062,0.120324,58177.0,58172.0,0.08577727]
[1723704346396,0.134324,58177.0,58173.0,0.12033]
[1723704346607,0.014,58177.0,58173.0,0.240659]
[1723704346897,0.014,58177.0,58172.0,0.08577727]
[1723704346898,0.120321,58178.0,58174.0,0.120328]
[1723704347148,0.014,58177.0,58175.0,0.120325]
[1723704347340,0.026,58177.0,58176.0,0.120324]
[1723704347659,0.120318,58180.0,58173.0,0.240657]
[1723704347883,0.240619,58184.0,58173.0,0.240657]
[1723704347884,0.01,58177.0,58173.0,0.240657]
[1723704348120,0.01,58177.0,58172.0,0.08577727]
[1723704348121,0.01,58177.0,58176.0,0.524073]
[1723704348316,0.51466362,58196.0,58191.0,0.1631]
[1723704348524,0.51466362,58196.0,58192.0,0.240581]
[1723704348725,0.893145,58202.0,58192.0,0.240581]
[1723704348726,0.716945,58202.0,58192.0,0.240581]
[1723704348957,0.240554,58199.0,58191.0,0.1631]
[1723704349249,0.120285,58195.0,58191.0,0.1631]
[1723704349794,0.240551,58200.0,58191.0,0.1631]
[1723704349795,0.120282,58197.0,58191.0,0.1631]
[1723704350031,0.120282,58197.0,58191.0,0.283392]
[1723704350429,0.008,58195.0,58191.0,0.283392]
[1723704350642,0.008,58195.0,58191.0,0.54072381]
[1723704350852,0.240522,58207.0,58192.0,0.17498486]
[1723704351054,0.240522,58207.0,58200.0,0.286874]
[1723704351301,0.481044,58207.0,58200.0,0.1666]
[1723704351499,0.120266,58205.0,58200.0,0.286874]
[1723704351701,0.120261,58207.0,58201.0,0.120272]
[1723704351902,0.120255,58210.0,58205.0,0.120264]
[1723704352104,0.120252,58211.0,58206.0,0.12026]
[1723704352373,0.4764,58214.0,58206.0,0.240524]
[1723704352547,0.4764,58214.0,58210.0,0.120253]
[1723704353164,0.120252,58212.0,58207.0,0.1685]
[1723704353528,0.4764,58214.0,58207.0,0.1685]
[1723704353733,0.120263,58206.0,58202.0,0.1711]
[1723704354154,0.5024,58214.0,58207.0,0.120259]
[1723704354355,0.120252,58211.0,58207.0,0.120259]
[1723704354698,0.120257,58209.0,58203.0,0.41208954]
[1723704354925,0.120257,58209.0,58207.0,0.000822]
[1723704355055,0.120258,58208.0,58207.0,0.000822]
[1723704355883,0.240501,58212.0,58207.0,0.000822]
[1723704356111,0.120254,58210.0,58207.0,0.000822]
[1723704356896,0.006,58208.0,58207.0,0.001822]
[1723704357145,0.126258,58208.0,58207.0,0.001822]
[1723704357482,0.120258,58208.0,58207.0,0.000822]
[1723704357883,0.120258,58208.0,58207.0,0.001822]
[1723704358259,0.124258,58208.0,58207.0,0.001822]
[1723704358451,0.120258,58208.0,58207.0,0.001822]
[1723704358654,0.128255,58210.0,58207.0,0.001822]
[1723704358861,0.004,58208.0,58207.0,0.001822]
[1723704359061,0.120256,58209.0,58207.0,0.001822]
[1723704359482,0.008,58210.0,58209.0,0.120256]
[1723704359656,0.4764,58214.0,58209.0,0.295356]
[1723704359657,0.120248,58213.0,58209.0,0.295356]